Workbook

Sheet 2015
C4: РОДИТЕЛЬСКАЯ ПЛАТА с 1.01.2015 года
B7: Наименование | C7: Категория | D7: часы | E7: ВСЕГО | G7: Содержание | I7: Питание
B8: детского сада | D8: посещен. | E8: 1-3 | F8: 3-7 | G8: 1-3 | H8: 3-7 | I8: 1-3 | J8: 3-7
B9: 1,3,5,6 | C9: дет.сад | D9: 12 | E9: 2565 | F9: 2482 | G9: =E9-I9 -> 2160 | H9: =F9-J9 -> 2028 | I9: 405 | J9: 454
B11: 12,14,16,17,18,20,22 | C11: д/сад | D11: 12 | E11: 2944 | F11: 2812 | G11: =E11-I11 -> 2539 | H11: =F11-J11 -> 2358 | I11: 405 | J11: 454
B12: 24,25,26,27,28,29,30 | C12: общеразвив.
B13: 31,33,34,35,36.32 | C13: вида
C14: группы с об-
B15: 16,18,24,30,34,35,36 | C15: щим недораз- | D15: 12 | E15: 4465 | F15: 4023 | G15: =E15-I15 -> 4060 | H15: =F15-J15 -> 3569 | I15: 405 | J15: 454
C16: витием речи
C18: компенс.гр-слабовидящие
B19: 26 | D19: 12 | E19: 4465 | F19: 4023 | G19: =E19-I19 -> 4060 | H19: =F19-J19 -> 3569 | I19: 405 | J19: 454
B22: 28 | C22: компенс.гр | D22: 12 | E22: 4465 | F22: 4023 | G22: =E22-I22 -> 4060 | H22: =F22-J22 -> 3569 | I22: 405 | J22: 454
C23: аллергич. гр
B24: 38 | C24: центр развития ребенка | D24: 12 | E24: 3384 | F24: 3198 | G24: =E24-I24 -> 2979 | H24: =F24-J24 -> 2744 | I24: 405 | J24: 454
B25: 13 | C25: компенс.гр ( иные отклонения в развитиии) | D25: 12 | E25: 4465 | F25: 4023 | G25: =E25-I25 -> 4060 | H25: =F25-J25 -> 3569 | I25: 405 | J25: 454
B27: Село | C27: д\сад | D27: 7 | E27: 1834 | F27: 2067 | G27: =E27-I27 -> 1518 | H27: 1659 | I27: 316 | J27: 408
D28: 9 | E28: 2176 | F28: 2239 | G28: 1860 | H28: 1831 | I28: 316 | J28: 408
D29: 12 | E29: 2565 | F29: 2482 | G29: 2160 | H29: 2028 | I29: 405 | J29: 454
B31: 7 часовые - Б.Шурняк,Яковлево
B32: 9 часовые - Гари,Д-дюм,Костенеево,Морты,Юраши,Альметьево,Армалы,Куклюк, Елово
B33: 12 часовые -Танайка,Бехтерево,поспелово,Хлыстово

Sheet 2014
B2: На основании Постановления Исполнительного Комитета ЕМР № 1088 от 23.09.2013г
B3: "Об утверждении нормативов финансироывания дошкольных образовательных учреждений муниципаль.образования ЕМР
C4: РОДИТЕЛЬСКАЯ ПЛАТА с 1.01.2015 года
B7: Наименование | C7: Категория | D7: часы | E7: ВСЕГО | G7: Содержание | I7: Питание
B8: детского сада | D8: посещен. | E8: 1-3 | F8: 3-7 | G8: 1-3 | H8: 3-7 | I8: 1-3 | J8: 3-7
B9: 1,3,5,6 | C9: дет.сад | D9: 12 | E9: 2290 | F9: 2210 | G9: =E9-I9 -> 1928 | H9: =F9-J9 -> 1811 | I9: 362 | J9: 399
B11: 12,14,16,17,18,20,22 | C11: д/сад | D11: 12 | E11: 2629 | F11: 2504 | G11: =E11-I11 -> 2267 | H11: =F11-J11 -> 2105 | I11: 362 | J11: 399
B12: 24,25,26,27,28,29,30 | C12: общеразвив.
B13: 31,33,34,35,36 | C13: вида
C14: группы с об-
B15: 16,18,24,30,34,35,36 | C15: щим недораз- | D15: 12 | E15: 3987 | F15: 3586 | G15: =E15-I15 -> 3411 | H15: =F15-J15 -> 3010 | I15: 576 | J15: 576
C16: витием речи
C18: компенс.гр-слабовидящие
B19: 26 | D19: 12 | E19: 3987 | F19: 3586 | G19: =E19-I19 -> 3411 | H19: =F19-J19 -> 3010 | I19: 576 | J19: 576
B22: 28 | C22: компенс.гр | D22: 12 | E22: 3987 | F22: 3586 | G22: =E22-I22 -> 3411 | H22: =F22-J22 -> 3010 | I22: 576 | J22: 576
C23: аллергич. гр
B24: 13 | C24: компенс.гр ( иные отклонения в развитиии) | D24: 12 | E24: 3987 | F24: 3586 | G24: =E24-I24 -> 3411 | H24: =F24-J24 -> 3010 | I24: 576 | J24: 576
B26: Село | C26: д\сад | D26: 7 | E26: 1637 | F26: 1841 | G26: =E26-I26 -> 1355 | H26: 1482 | I26: 282 | J26: 359
D27: 9 | E27: 1943 | F27: 1993 | G27: 1661 | H27: 1634 | I27: 282 | J27: 359
D28: 12 | E28: 2290 | F28: 2210 | G28: 1928 | H28: 1811 | I28: 362 | J28: 399
B30: 7 часовые - Б.Шурняк,Яковлево
B31: 9 часовые - Гари,Д-дюм,Костенеево,Морты,Юраши,Альметьево,Армалы,Куклюк, Елово
B32: 12 часовые -Танайка,Бехтерево,поспелово,Хлыстово
